[Event "Early-Titled-Tuesday-Blitz-July-09-2024"]
[Site "Chess.com"]
[Date "2024.07.09"]
[Round "5"]
[White "LeoLV10"]
[Black "Cmorales2001"]
[Result "0-1"]
[WhiteElo "2524"]
[BlackElo "2355"]
[TimeControl "180+1"]
[EndTime "8:59:12 PDT"]
[Termination "Cmorales2001 won by resignation"]

1. e4 {[%clk 0:03:00]} 1... c6 {[%clk 0:02:58.9]} 2. d4 {[%clk 0:02:58.4]} 2...
d5 {[%clk 0:02:57.7]} 3. e5 {[%clk 0:02:59.1]} 3... Bf5 {[%clk 0:02:57.2]} 4. h4
{[%clk 0:02:59.8]} 4... h5 {[%clk 0:02:56.7]} 5. Bd3 {[%clk 0:03:00.3]} 5...
Bxd3 {[%clk 0:02:56.7]} 6. Qxd3 {[%clk 0:03:01.2]} 6... Qa5+ {[%clk 0:02:56.2]}
7. Nd2 {[%clk 0:03:01.9]} 7... e6 {[%clk 0:02:54.3]} 8. Nf3 {[%clk 0:03:01.9]}
8... Ne7 {[%clk 0:02:51.8]} 9. O-O {[%clk 0:03:00.4]} 9... Nd7 {[%clk
0:02:52.4]} 10. a4 {[%clk 0:03:00.4]} 10... Nf5 {[%clk 0:02:51.7]} 11. Nb3
{[%clk 0:02:59.5]} 11... Qa6 {[%clk 0:02:50.9]} 12. Qd1 {[%clk 0:03:00]} 12...
Be7 {[%clk 0:02:48]} 13. g3 {[%clk 0:02:55.8]} 13... Rc8 {[%clk 0:02:43.6]} 14.
c3 {[%clk 0:02:54]} 14... c5 {[%clk 0:02:42.5]} 15. dxc5 {[%clk 0:02:54.9]}
15... Nxc5 {[%clk 0:02:42]} 16. Nbd4 {[%clk 0:02:52.5]} 16... Nxd4 {[%clk
0:02:39.3]} 17. Nxd4 {[%clk 0:02:53.4]} 17... Qd3 {[%clk 0:02:37]} 18. Be3
{[%clk 0:02:42.5]} 18... a6 {[%clk 0:02:34.5]} 19. Qe1 {[%clk 0:02:20.1]} 19...
Qe4 {[%clk 0:02:29.9]} 20. Qd2 {[%clk 0:02:18.8]} 20... Bxh4 {[%clk 0:02:15.7]}
21. Rae1 {[%clk 0:02:06.1]} 21... Qg6 {[%clk 0:02:15.3]} 22. Nf3 {[%clk
0:01:57.8]} 22... Be7 {[%clk 0:02:14.5]} 23. Bxc5 {[%clk 0:01:57.2]} 23... Bxc5
{[%clk 0:02:14.8]} 24. Nh4 {[%clk 0:01:57.6]} 24... Qxg3+ {[%clk 0:02:13.5]} 25.
Ng2 {[%clk 0:01:58.4]} 25... Rh6 {[%clk 0:01:51.8]} 26. Qf4 {[%clk 0:01:46.3]}
26... Qxf4 {[%clk 0:01:49.9]} 27. Nxf4 {[%clk 0:01:47.2]} 27... g6 {[%clk
0:01:49.4]} 28. Kg2 {[%clk 0:01:45.3]} 28... Kf8 {[%clk 0:01:46.9]} 29. Rh1
{[%clk 0:01:41]} 29... Kg7 {[%clk 0:01:41.8]} 30. Rd1 {[%clk 0:01:39.7]} 30...
Rhh8 {[%clk 0:01:39.9]} 31. Rh3 {[%clk 0:01:39.8]} 31... Be7 {[%clk 0:01:38.6]}
32. Rdh1 {[%clk 0:01:37.4]} 32... Rc4 {[%clk 0:01:37.3]} 33. Kf3 {[%clk
0:01:32.1]} 33... Rxa4 {[%clk 0:01:33.8]} 34. Rg3 {[%clk 0:01:32.7]} 34... h4
{[%clk 0:01:27.5]} 35. Rg4 {[%clk 0:01:28.1]} 35... Re4 {[%clk 0:01:21.1]} 36.
Nd3 {[%clk 0:01:21.3]} 36... Rxg4 {[%clk 0:01:19.9]} 37. Kxg4 {[%clk 0:01:22.1]}
37... Rc8 {[%clk 0:01:19.4]} 38. f4 {[%clk 0:01:06.5]} 38... Rc4 {[%clk
0:01:16.7]} 39. Rh3 {[%clk 0:01:06.8]} 39... Re4 {[%clk 0:01:16]} 40. Nf2 {[%clk
0:01:05.3]} 40... Re2 {[%clk 0:01:15]} 41. Nd3 {[%clk 0:01:05.7]} 41... Rd2
{[%clk 0:01:12.7]} 42. Rf3 {[%clk 0:00:59.4]} 42... Kh6 {[%clk 0:01:10.6]} 43.
Rh3 {[%clk 0:00:58.7]} 43... Rg2+ {[%clk 0:01:07.4]} 44. Kf3 {[%clk 0:00:58.9]}
44... Rg1 {[%clk 0:01:06.4]} 45. Kf2 {[%clk 0:00:40.5]} 45... Rd1 {[%clk
0:01:05.5]} 46. Ke2 {[%clk 0:00:40.9]} 46... Rb1 {[%clk 0:01:04.2]} 47. Kf3
{[%clk 0:00:41.2]} 47... g5 {[%clk 0:01:02.2]} 48. fxg5+ {[%clk 0:00:38.5]}
48... Bxg5 {[%clk 0:01:02.8]} 49. Kg4 {[%clk 0:00:37.3]} 49... Rg1+ {[%clk
0:00:58.6]} 50. Kf3 {[%clk 0:00:37.5]} 50... Kh5 {[%clk 0:00:57.2]} 51. Kf2
{[%clk 0:00:37.6]} 51... Rg4 {[%clk 0:00:52.2]} 52. Rf3 {[%clk 0:00:37.1]} 52...
Kg6 {[%clk 0:00:51.1]} 53. Rh3 {[%clk 0:00:34.1]} 53... Re4 {[%clk 0:00:50]} 54.
Kf3 {[%clk 0:00:33.6]} 54... Re3+ {[%clk 0:00:49.3]} 55. Kg2 {[%clk 0:00:34.2]}
55... Rxh3 {[%clk 0:00:48.6]} 56. Kxh3 {[%clk 0:00:35.1]} 56... Kf5 {[%clk
0:00:48.5]} 57. Nc5 {[%clk 0:00:35.5]} 57... Kxe5 {[%clk 0:00:40.7]} 58. Kg4
{[%clk 0:00:29.9]} 58... Bd8 {[%clk 0:00:34.3]} 59. Nxb7 {[%clk 0:00:27.6]}
59... Bb6 {[%clk 0:00:33.9]} 60. b3 {[%clk 0:00:22.6]} 60... d4 {[%clk
0:00:30.6]} 61. cxd4+ {[%clk 0:00:22.8]} 61... Bxd4 {[%clk 0:00:29.1]} 62. Na5
{[%clk 0:00:22.5]} 62... Bf2 {[%clk 0:00:28.9]} 63. Nc4+ {[%clk 0:00:21.8]}
63... Kd5 {[%clk 0:00:26.7]} 64. Kf3 {[%clk 0:00:22.7]} 64... Bc5 {[%clk
0:00:21.2]} 65. Kg4 {[%clk 0:00:21.8]} 65... Be7 {[%clk 0:00:20.7]} 66. Nb6+
{[%clk 0:00:20.8]} 66... Kc6 {[%clk 0:00:20.5]} 67. Nc4 {[%clk 0:00:20.9]} 67...
f5+ {[%clk 0:00:17.4]} 68. Kf4 {[%clk 0:00:20.1]} 68... Kd5 {[%clk 0:00:18.1]}
69. Nb6+ {[%clk 0:00:18.5]} 69... Kd4 {[%clk 0:00:18.2]} 70. Nc8 {[%clk
0:00:17.9]} 70... Bd8 {[%clk 0:00:16.6]} 71. Kf3 {[%clk 0:00:16.2]} 71... Kc5
{[%clk 0:00:14.4]} 72. Na7 {[%clk 0:00:15.4]} 72... Kb6 {[%clk 0:00:14.4]} 73.
Nc8+ {[%clk 0:00:15.3]} 73... Kc7 {[%clk 0:00:13.1]} 74. Na7 {[%clk 0:00:15.2]}
74... Kb7 {[%clk 0:00:13.7]} 0-1

[Event "Early-Titled-Tuesday-Blitz-July-09-2024"]
[Site "Chess.com"]
[Date "2024.07.09"]
[Round "5"]
[White "ViIIagra"]
[Black "KogotBobra17"]
[Result "1/2-1/2"]
[WhiteElo "2870"]
[BlackElo "2666"]
[TimeControl "180+1"]
[EndTime "8:59:16 PDT"]
[Termination "Game drawn - insufficient material"]

1. e4 {[%clk 0:02:49.3]} 1... c5 {[%clk 0:02:59.5]} 2. Be2 {[%clk 0:02:40.6]}
2... d5 {[%clk 0:02:52.9]} 3. d3 {[%clk 0:02:38.9]} 3... dxe4 {[%clk 0:02:44.7]}
4. dxe4 {[%clk 0:02:39.8]} 4... Qxd1+ {[%clk 0:02:45.2]} 5. Kxd1 {[%clk
0:02:38]} 5... Nc6 {[%clk 0:02:46.1]} 6. c3 {[%clk 0:02:38.3]} 6... b6 {[%clk
0:02:45.8]} 7. Kc2 {[%clk 0:02:35.8]} 7... Bb7 {[%clk 0:02:46.2]} 8. a4 {[%clk
0:02:35.6]} 8... g6 {[%clk 0:02:43.3]} 9. f3 {[%clk 0:02:35.9]} 9... Bg7 {[%clk
0:02:43]} 10. Na3 {[%clk 0:02:35.7]} 10... Nf6 {[%clk 0:02:43.1]} 11. Be3 {[%clk
0:02:31.6]} 11... O-O {[%clk 0:02:43.4]} 12. Nh3 {[%clk 0:02:30.8]} 12... Rac8
{[%clk 0:02:43.7]} 13. Nf2 {[%clk 0:02:23.6]} 13... Nd4+ {[%clk 0:02:40.8]} 14.
Kd1 {[%clk 0:02:13.9]} 14... Nb3 {[%clk 0:02:15.2]} 15. Ra2 {[%clk 0:02:12.6]}
15... Rfd8+ {[%clk 0:02:15.7]} 16. Ke1 {[%clk 0:02:13.2]} 16... Na5 {[%clk
0:01:58.3]} 17. Nc4 {[%clk 0:02:11.2]} 17... Nxc4 {[%clk 0:01:48.7]} 18. Bxc4
{[%clk 0:02:12.1]} 18... Nd7 {[%clk 0:01:49.4]} 19. f4 {[%clk 0:02:11.3]} 19...
Nf6 {[%clk 0:01:46.9]} 20. e5 {[%clk 0:02:09.9]} 20... Nd5 {[%clk 0:01:46.6]}
21. Bd2 {[%clk 0:02:04.1]} 21... a6 {[%clk 0:01:44.6]} 22. Ra1 {[%clk
0:02:01.9]} 22... Nc7 {[%clk 0:01:43.2]} 23. Ke2 {[%clk 0:02:02]} 23... Bxg2
{[%clk 0:01:40.2]} 24. Rhd1 {[%clk 0:01:57]} 24... b5 {[%clk 0:01:39.5]} 25.
axb5 {[%clk 0:01:55.4]} 25... axb5 {[%clk 0:01:40.4]} 26. Bb3 {[%clk 0:01:55.5]}
26... c4 {[%clk 0:01:34.4]} 27. Bc2 {[%clk 0:01:55.6]} 27... Ne6 {[%clk
0:01:35]} 28. f5 {[%clk 0:01:44.9]} 28... Nc5 {[%clk 0:01:28.1]} 29. e6 {[%clk
0:01:40]} 29... gxf5 {[%clk 0:01:09.8]} 30. Rg1 {[%clk 0:01:36.5]} 30... Bf3+
{[%clk 0:01:05.2]} 31. Kxf3 {[%clk 0:01:32.2]} 31... Rxd2 {[%clk 0:01:05.3]} 32.
exf7+ {[%clk 0:01:32.6]} 32... Kxf7 {[%clk 0:01:05.4]} 33. Bxf5 {[%clk
0:01:33.2]} 33... Rf8 {[%clk 0:01:05.5]} 34. Ne4 {[%clk 0:01:21.8]} 34... Kg8
{[%clk 0:00:39]} 35. Nxd2 {[%clk 0:01:13.9]} 35... Rxf5+ {[%clk 0:00:37]} 36.
Ke2 {[%clk 0:01:12.2]} 36... Nd3 {[%clk 0:00:37.2]} 37. b3 {[%clk 0:01:01.7]}
37... Nf4+ {[%clk 0:00:16.9]} 38. Kd1 {[%clk 0:01:01.2]} 38... Nd5 {[%clk
0:00:16.8]} 39. bxc4 {[%clk 0:01:00.7]} 39... Nxc3+ {[%clk 0:00:17.3]} 40. Kc2
{[%clk 0:01:00.4]} 40... bxc4 {[%clk 0:00:17.7]} 41. Rxg7+ {[%clk 0:01:00.2]}
41... Kxg7 {[%clk 0:00:18.3]} 42. Kxc3 {[%clk 0:01:01]} 42... Rf2 {[%clk
0:00:19.2]} 43. Rh1 {[%clk 0:01:01.1]} 43... Kg6 {[%clk 0:00:17.3]} 44. Nxc4
{[%clk 0:01:00.9]} 44... Kg5 {[%clk 0:00:17.4]} 45. Kd3 {[%clk 0:00:45.5]} 45...
Kh4 {[%clk 0:00:17.6]} 46. Ke3 {[%clk 0:00:45.4]} 46... Rc2 {[%clk 0:00:18.1]}
47. Ne5 {[%clk 0:00:45]} 47... Kh3 {[%clk 0:00:18.6]} 48. Nf3 {[%clk 0:00:42.6]}
48... Rc3+ {[%clk 0:00:17]} 49. Ke2 {[%clk 0:00:42.2]} 49... Rc2+ {[%clk
0:00:16.4]} 50. Kd3 {[%clk 0:00:42.5]} 50... Ra2 {[%clk 0:00:13.4]} 51. Rg1
{[%clk 0:00:42.7]} 51... Ra3+ {[%clk 0:00:12.3]} 52. Ke4 {[%clk 0:00:41.3]}
52... Ra4+ {[%clk 0:00:12.5]} 53. Kf5 {[%clk 0:00:40.3]} 53... Ra5+ {[%clk
0:00:12.8]} 54. Ke6 {[%clk 0:00:39.7]} 54... Ra6+ {[%clk 0:00:11.4]} 55. Kxe7
{[%clk 0:00:33.7]} 55... Ra7+ {[%clk 0:00:11.8]} 56. Ke6 {[%clk 0:00:33]} 56...
Ra6+ {[%clk 0:00:11.9]} 57. Kd5 {[%clk 0:00:33.5]} 57... Ra5+ {[%clk 0:00:12.2]}
58. Kc4 {[%clk 0:00:18.4]} 58... Ra4+ {[%clk 0:00:12.1]} 59. Kb3 {[%clk
0:00:19.1]} 59... Rg4 {[%clk 0:00:12.8]} 60. Rxg4 {[%clk 0:00:12.8]} 60... Kxg4
{[%clk 0:00:13.7]} 61. Ng1 {[%clk 0:00:13.7]} 61... Kf4 {[%clk 0:00:14]} 62. Kc4
{[%clk 0:00:13.3]} 62... Ke3 {[%clk 0:00:14.6]} 63. h4 {[%clk 0:00:07.9]} 63...
Kf4 {[%clk 0:00:14]} 64. Kd5 {[%clk 0:00:05.7]} 64... Kg4 {[%clk 0:00:14]} 65.
Ke4 {[%clk 0:00:06.1]} 65... Kxh4 {[%clk 0:00:14.2]} 66. Kf4 {[%clk 0:00:06.9]}
66... Kh5 {[%clk 0:00:14.7]} 67. Kf5 {[%clk 0:00:07.3]} 67... Kh4 {[%clk
0:00:15.3]} 68. Kf6 {[%clk 0:00:08]} 68... Kg3 {[%clk 0:00:15.2]} 69. Kg5 {[%clk
0:00:08.3]} 69... h5 {[%clk 0:00:15.6]} 70. Kxh5 {[%clk 0:00:08.9]} 1/2-1/2

[Event "Early-Titled-Tuesday-Blitz-July-09-2024"]
[Site "Chess.com"]
[Date "2024.07.09"]
[Round "5"]
[White "familijatop71"]
[Black "pinelone"]
[Result "1/2-1/2"]
[WhiteElo "2314"]
[BlackElo "2389"]
[TimeControl "180+1"]
[EndTime "8:59:17 PDT"]
[Termination "Game drawn - insufficient material"]

1. e4 {[%clk 0:03:00.9]} 1... c6 {[%clk 0:02:59.8]} 2. d4 {[%clk 0:03:00.5]}
2... d5 {[%clk 0:03:00.1]} 3. e5 {[%clk 0:03:00.5]} 3... c5 {[%clk 0:03:00.2]}
4. c3 {[%clk 0:02:59.5]} 4... Nc6 {[%clk 0:03:00.4]} 5. Be2 {[%clk 0:02:58.3]}
5... Bf5 {[%clk 0:02:53.6]} 6. Nf3 {[%clk 0:02:57.8]} 6... e6 {[%clk 0:02:52.7]}
7. O-O {[%clk 0:02:56.2]} 7... Bg4 {[%clk 0:02:48.1]} 8. Nbd2 {[%clk 0:02:48.1]}
8... cxd4 {[%clk 0:02:44.9]} 9. cxd4 {[%clk 0:02:47.2]} 9... Nge7 {[%clk
0:02:45]} 10. a3 {[%clk 0:02:40]} 10... Nf5 {[%clk 0:02:40.6]} 11. b4 {[%clk
0:02:28.9]} 11... Be7 {[%clk 0:02:38.3]} 12. Bb2 {[%clk 0:02:27.6]} 12... O-O
{[%clk 0:02:37.8]} 13. h3 {[%clk 0:02:28.1]} 13... Bxf3 {[%clk 0:02:37.9]} 14.
Nxf3 {[%clk 0:02:29]} 14... Rc8 {[%clk 0:02:37.2]} 15. Rc1 {[%clk 0:02:28.4]}
15... a6 {[%clk 0:02:33.2]} 16. Qd2 {[%clk 0:02:21.7]} 16... Na7 {[%clk
0:02:24.9]} 17. Rxc8 {[%clk 0:02:13.9]} 17... Nxc8 {[%clk 0:02:24.4]} 18. g4
{[%clk 0:02:10.5]} 18... Nh6 {[%clk 0:02:16.9]} 19. Ne1 {[%clk 0:01:59.1]} 19...
Nb6 {[%clk 0:02:07.8]} 20. Bc1 {[%clk 0:01:58]} 20... Kh8 {[%clk 0:02:05.2]} 21.
Bd3 {[%clk 0:01:46.8]} 21... Ng8 {[%clk 0:02:01.1]} 22. f4 {[%clk 0:01:39.3]}
22... Nc4 {[%clk 0:01:59.2]} 23. Qg2 {[%clk 0:01:32.7]} 23... Qb6 {[%clk
0:01:54]} 24. Nf3 {[%clk 0:01:25]} 24... f6 {[%clk 0:01:45.8]} 25. Kh2 {[%clk
0:01:19.7]} 25... Qc7 {[%clk 0:01:25.5]} 26. Qg3 {[%clk 0:00:55.5]} 26... fxe5
{[%clk 0:01:22.6]} 27. dxe5 {[%clk 0:00:45.3]} 27... b5 {[%clk 0:01:11.4]} 28.
f5 {[%clk 0:00:42.4]} 28... d4 {[%clk 0:00:57]} 29. fxe6 {[%clk 0:00:23.1]}
29... Ne3 {[%clk 0:00:52]} 30. Bxe3 {[%clk 0:00:20.7]} 30... dxe3 {[%clk
0:00:52.5]} 31. Nh4 {[%clk 0:00:14.5]} 31... Rxf1 {[%clk 0:00:46.1]} 32. Bxf1
{[%clk 0:00:14]} 32... Bxh4 {[%clk 0:00:37.6]} 33. Qxh4 {[%clk 0:00:14.1]} 33...
Qxe5+ {[%clk 0:00:37.3]} 34. Qg3 {[%clk 0:00:13.3]} 34... Qxe6 {[%clk
0:00:34.6]} 35. Be2 {[%clk 0:00:12.8]} 35... h6 {[%clk 0:00:33.7]} 36. Qf3
{[%clk 0:00:12.5]} 36... Nf6 {[%clk 0:00:32.8]} 37. Bd3 {[%clk 0:00:11.7]} 37...
Qe5+ {[%clk 0:00:28.5]} 38. Kg2 {[%clk 0:00:11.5]} 38... Qd5 {[%clk 0:00:14.9]}
39. Qxd5 {[%clk 0:00:07.1]} 39... Nxd5 {[%clk 0:00:14.9]} 40. Kf3 {[%clk
0:00:07.8]} 40... g5 {[%clk 0:00:11.4]} 41. Ke4 {[%clk 0:00:03.9]} 41... Nf4
{[%clk 0:00:09.7]} 42. Kxe3 {[%clk 0:00:02.3]} 42... Kg7 {[%clk 0:00:07.5]} 43.
Bf1 {[%clk 0:00:01.7]} 43... Kf6 {[%clk 0:00:07.7]} 44. Ke4 {[%clk 0:00:02.1]}
44... Ke6 {[%clk 0:00:07.9]} 45. Kd4 {[%clk 0:00:02.3]} 45... Kd6 {[%clk
0:00:08.3]} 46. Ke4 {[%clk 0:00:01.7]} 46... Ke6 {[%clk 0:00:07.6]} 47. Kd4
{[%clk 0:00:02.1]} 47... Kd6 {[%clk 0:00:05.2]} 48. Ke4 {[%clk 0:00:02.6]} 48...
Ng6 {[%clk 0:00:04.1]} 49. Kf5 {[%clk 0:00:03]} 49... Nh4+ {[%clk 0:00:04.5]}
50. Kf6 {[%clk 0:00:03.3]} 50... Kd5 {[%clk 0:00:04.6]} 51. Kg7 {[%clk
0:00:03.4]} 51... Ke4 {[%clk 0:00:04.5]} 52. Kxh6 {[%clk 0:00:03.8]} 52... Kf4
{[%clk 0:00:05.2]} 53. Kh5 {[%clk 0:00:03.7]} 53... Nf3 {[%clk 0:00:05.1]} 54.
Bg2 {[%clk 0:00:03.3]} 54... Nd4 {[%clk 0:00:03.7]} 55. Bb7 {[%clk 0:00:02.5]}
55... Nc2 {[%clk 0:00:04.1]} 56. Bxa6 {[%clk 0:00:02.6]} 56... Nxa3 {[%clk
0:00:04.6]} 57. h4 {[%clk 0:00:02.3]} 57... gxh4 {[%clk 0:00:04.3]} 58. Kxh4
{[%clk 0:00:02.7]} 58... Nc2 {[%clk 0:00:03.8]} 59. Bxb5 {[%clk 0:00:02.1]}
59... Nxb4 {[%clk 0:00:04.3]} 60. g5 {[%clk 0:00:03]} 60... Nd5 {[%clk
0:00:04.1]} 61. Kh5 {[%clk 0:00:03.1]} 61... Ke5 {[%clk 0:00:03.5]} 62. Kh6
{[%clk 0:00:02.6]} 62... Kd6 {[%clk 0:00:02.6]} 63. g6 {[%clk 0:00:02.2]} 63...
Ne7 {[%clk 0:00:02.1]} 64. g7 {[%clk 0:00:01.6]} 64... Nf5+ {[%clk 0:00:02.4]}
65. Kg6 {[%clk 0:00:01.5]} 65... Nxg7 {[%clk 0:00:02.7]} 1/2-1/2

[Event "Early-Titled-Tuesday-Blitz-July-09-2024"]
[Site "Chess.com"]
[Date "2024.07.09"]
[Round "5"]
[White "Individoom"]
[Black "ChessFighter_2011"]
[Result "1/2-1/2"]
[WhiteElo "2754"]
[BlackElo "2947"]
[TimeControl "180+1"]
[EndTime "8:59:18 PDT"]
[Termination "Game drawn - insufficient material"]

1. d4 {[%clk 0:02:59.9]} 1... Nf6 {[%clk 0:02:57.4]} 2. Bg5 {[%clk 0:02:59.3]}
2... Ne4 {[%clk 0:02:56]} 3. h4 {[%clk 0:02:59.2]} 3... c5 {[%clk 0:02:54.8]} 4.
d5 {[%clk 0:02:59]} 4... g6 {[%clk 0:02:54]} 5. Nd2 {[%clk 0:02:58.1]} 5... Nxg5
{[%clk 0:02:52.4]} 6. hxg5 {[%clk 0:02:58.1]} 6... Bg7 {[%clk 0:02:51.9]} 7. c3
{[%clk 0:02:58.4]} 7... d6 {[%clk 0:02:51.5]} 8. e4 {[%clk 0:02:58]} 8... h6
{[%clk 0:02:44.5]} 9. Ngf3 {[%clk 0:02:52.7]} 9... Bg4 {[%clk 0:02:40.3]} 10.
Be2 {[%clk 0:02:51.8]} 10... Nd7 {[%clk 0:02:29.6]} 11. a4 {[%clk 0:02:41.6]}
11... Qc7 {[%clk 0:02:28.4]} 12. a5 {[%clk 0:02:35.6]} 12... O-O-O {[%clk
0:02:20.9]} 13. Qa4 {[%clk 0:02:11]} 13... hxg5 {[%clk 0:02:10.8]} 14. Rxh8
{[%clk 0:02:11.9]} 14... Rxh8 {[%clk 0:02:10.7]} 15. Nxg5 {[%clk 0:02:12.1]}
15... Bxe2 {[%clk 0:01:35.7]} 16. Kxe2 {[%clk 0:02:13]} 16... Ne5 {[%clk
0:01:35.2]} 17. f4 {[%clk 0:01:58.4]} 17... Bf6 {[%clk 0:01:22.9]} 18. Ngf3
{[%clk 0:01:44.1]} 18... Nxf3 {[%clk 0:01:12.7]} 19. Nxf3 {[%clk 0:01:43.6]}
19... Qd7 {[%clk 0:01:13.3]} 20. Qxd7+ {[%clk 0:01:35.7]} 20... Kxd7 {[%clk
0:01:14.2]} 21. e5 {[%clk 0:01:30.2]} 21... dxe5 {[%clk 0:01:13.4]} 22. fxe5
{[%clk 0:01:30.2]} 22... Bg7 {[%clk 0:01:14]} 23. Ke3 {[%clk 0:01:29.6]} 23...
e6 {[%clk 0:01:06.8]} 24. Rd1 {[%clk 0:00:50]} 24... exd5 {[%clk 0:01:02]} 25.
Rxd5+ {[%clk 0:00:50.9]} 25... Kc6 {[%clk 0:01:02.6]} 26. Rd6+ {[%clk 0:00:51]}
26... Kc7 {[%clk 0:01:03.1]} 27. Kf4 {[%clk 0:00:47.5]} 27... Re8 {[%clk
0:00:42.8]} 28. Rd5 {[%clk 0:00:45.9]} 28... b6 {[%clk 0:00:42.9]} 29. c4 {[%clk
0:00:42]} 29... f6 {[%clk 0:00:37.8]} 30. b3 {[%clk 0:00:36.6]} 30... fxe5+
{[%clk 0:00:19.7]} 31. Nxe5 {[%clk 0:00:36.4]} 31... Rf8+ {[%clk 0:00:20.1]} 32.
Ke4 {[%clk 0:00:35.4]} 32... Bxe5 {[%clk 0:00:17.4]} 33. Rxe5 {[%clk 0:00:35.6]}
33... Kd6 {[%clk 0:00:15.5]} 34. Rg5 {[%clk 0:00:32.3]} 34... Rf6 {[%clk
0:00:15.5]} 35. axb6 {[%clk 0:00:27.3]} 35... axb6 {[%clk 0:00:15.8]} 36. Ke3
{[%clk 0:00:27.5]} 36... Re6+ {[%clk 0:00:15]} 37. Kd3 {[%clk 0:00:26.7]} 37...
Rf6 {[%clk 0:00:15.1]} 38. Ke4 {[%clk 0:00:26.3]} 38... Re6+ {[%clk 0:00:15.2]}
39. Kf4 {[%clk 0:00:26.4]} 39... Rf6+ {[%clk 0:00:15.7]} 40. Kg4 {[%clk
0:00:26.7]} 40... Ke6 {[%clk 0:00:16.2]} 41. g3 {[%clk 0:00:26]} 41... Kf7
{[%clk 0:00:16.1]} 42. Rd5 {[%clk 0:00:26]} 42... Ke6 {[%clk 0:00:15.5]} 43. Rd8
{[%clk 0:00:25.8]} 43... Rf2 {[%clk 0:00:15]} 44. Rb8 {[%clk 0:00:25.5]} 44...
Kf7 {[%clk 0:00:09.1]} 45. Rb7+ {[%clk 0:00:25]} 45... Kf8 {[%clk 0:00:03.8]}
46. Rxb6 {[%clk 0:00:23.9]} 46... Kf7 {[%clk 0:00:04.6]} 47. Rb7+ {[%clk
0:00:23.8]} 47... Kf6 {[%clk 0:00:04.9]} 48. Rb6+ {[%clk 0:00:21.4]} 48... Kf7
{[%clk 0:00:04.8]} 49. Rc6 {[%clk 0:00:21.1]} 49... Rb2 {[%clk 0:00:04.8]} 50.
Kg5 {[%clk 0:00:20.9]} 50... Rxb3 {[%clk 0:00:05.4]} 51. Rc7+ {[%clk 0:00:21.1]}
51... Ke6 {[%clk 0:00:05.8]} 52. g4 {[%clk 0:00:21]} 52... Kd6 {[%clk 0:00:06]}
53. Rg7 {[%clk 0:00:20.6]} 53... Rc3 {[%clk 0:00:06.6]} 54. Rxg6+ {[%clk
0:00:20.7]} 54... Ke5 {[%clk 0:00:07.2]} 55. Rg8 {[%clk 0:00:19.7]} 55... Rxc4
{[%clk 0:00:07.5]} 56. Re8+ {[%clk 0:00:20.6]} 56... Kd6 {[%clk 0:00:07.9]} 57.
Kf5 {[%clk 0:00:20.5]} 57... Rc1 {[%clk 0:00:07.2]} 58. g5 {[%clk 0:00:20.7]}
58... Rf1+ {[%clk 0:00:07.7]} 59. Kg6 {[%clk 0:00:20.2]} 59... Kd5 {[%clk
0:00:08.3]} 60. Rd8+ {[%clk 0:00:18.5]} 60... Ke4 {[%clk 0:00:08.1]} 61. Kh6
{[%clk 0:00:18]} 61... c4 {[%clk 0:00:08.3]} 62. g6 {[%clk 0:00:18]} 62... Rh1+
{[%clk 0:00:08.2]} 63. Kg5 {[%clk 0:00:17.8]} 63... Rg1+ {[%clk 0:00:08.8]} 64.
Kf6 {[%clk 0:00:18.1]} 64... c3 {[%clk 0:00:09.4]} 65. Rc8 {[%clk 0:00:17.2]}
65... Kd3 {[%clk 0:00:09.7]} 66. g7 {[%clk 0:00:17.5]} 66... Rxg7 {[%clk
0:00:09.4]} 67. Kxg7 {[%clk 0:00:17.7]} 67... c2 {[%clk 0:00:10.3]} 68. Rxc2
{[%clk 0:00:17.7]} 68... Kxc2 {[%clk 0:00:11.2]} 1/2-1/2